bitfinex/quotes_BTCUSD_20250224
["timestamp","ask_amount","ask_price","bid_price","bid_amount"]
[1740382458698,0.00057382,96056.0,96055.0,0.44261506]
[1740382458885,0.15673182,96056.0,96055.0,0.44261506]
[1740382460386,0.17810603,96056.0,96055.0,0.43561506]
[1740382460589,0.17810603,96056.0,96055.0,0.11521506]
[1740382460989,0.23490603,96056.0,96055.0,0.11634389]
[1740382462487,0.23490603,96056.0,96055.0,0.10434389]
[1740382462661,0.23490603,96056.0,96055.0,0.11134389]
[1740382463179,0.23490603,96056.0,96055.0,0.10734389]
[1740382463384,0.23490603,96056.0,96055.0,0.10934389]
[1740382463620,0.23490603,96056.0,96055.0,0.10634389]
[1740382463868,0.23490603,96056.0,96055.0,0.10734389]
[1740382471429,0.04122215,96056.0,96055.0,0.10734389]
[1740382471634,0.2090579,96058.0,96055.0,0.11106065]
[1740382471807,0.156157,96057.0,96056.0,0.10264569]
[1740382472194,0.1777252,96057.0,96056.0,0.10264569]
[1740382473627,0.1777252,96057.0,96056.0,0.10464569]
[1740382478747,0.1777252,96057.0,96056.0,0.10836151]
[1740382479179,0.1777252,96057.0,96056.0,0.10464569]
[1740382480009,0.1785743,96057.0,96056.0,0.22454569]
[1740382480424,0.1785743,96057.0,96056.0,0.22826151]
[1740382492116,0.1785743,96057.0,96056.0,0.22996131]
[1740382508523,0.0224173,96057.0,96056.0,0.22996131]
[1740382508732,0.0224173,96057.0,96056.0,0.27696131]
[1740382509178,0.0008491,96057.0,96056.0,0.51041931]
[1740382509926,0.0008491,96057.0,96056.0,0.50941931]
[1740382510328,0.0008491,96057.0,96056.0,0.51241931]
[1740382510548,0.0008491,96057.0,96056.0,0.51141931]
[1740382510770,0.0008491,96057.0,96056.0,0.51541931]
[1740382511472,0.0008491,96057.0,96056.0,0.83681931]
[1740382514693,0.10981547,96066.0,96062.0,0.156148]
[1740382515060,0.156136,96070.0,96063.0,0.10605376]
[1740382516602,0.17468051,96070.0,96063.0,0.10605376]
[1740382516788,0.17468051,96070.0,96064.0,0.079]
[1740382517147,0.17468051,96070.0,96065.0,0.10605188]
[1740382517353,0.01854451,96070.0,96065.0,0.10605188]
[1740382517553,0.001,96070.0,96065.0,0.10605188]
[1740382518060,0.17546546,96071.0,96065.0,0.10605188]
[1740382518472,0.157137,96070.0,96065.0,0.10605188]
[1740382519868,0.156137,96070.0,96065.0,0.10605188]
[1740382520093,0.02033146,96071.0,96065.0,0.10605188]
[1740382520341,0.156136,96070.0,96065.0,0.10605188]
[1740382520736,0.157136,96070.0,96065.0,0.10605188]
[1740382521471,0.001,96070.0,96065.0,0.10605188]
[1740382522188,0.001,96070.0,96065.0,0.26219488]
[1740382522648,0.001,96070.0,96065.0,0.10605188]
[1740382523654,0.001,96070.0,96065.0,0.26219488]
[1740382525572,0.001,96070.0,96066.0,0.156142]
[1740382525775,0.001,96070.0,96067.0,0.10264569]
[1740382525974,0.001,96070.0,96067.0,0.10604999]
[1740382526155,0.157136,96070.0,96067.0,0.10604999]
[1740382526769,0.1579858,96070.0,96067.0,0.10604999]
[1740382526946,0.1569858,96070.0,96067.0,0.10604999]
[1740382527157,0.0018498,96070.0,96067.0,0.10604999]
[1740382527357,0.1579858,96070.0,96067.0,0.10604999]
[1740382527642,0.0018498,96070.0,96067.0,0.10604999]
[1740382528830,0.0008498,96070.0,96067.0,0.10604999]
[1740382529248,0.0018498,96070.0,96067.0,0.10604999]
[1740382529448,0.00175776,96070.0,96067.0,0.10604999]
[1740382530246,0.00175776,96070.0,96067.0,0.26218999]
[1740382530446,0.00175776,96070.0,96069.0,0.156137]
[1740382530613,0.00175776,96070.0,96069.0,0.38888511]
[1740382531423,0.00175776,96070.0,96069.0,0.39131756]
[1740382531910,0.00175776,96070.0,96069.0,0.39531756]
[1740382532315,0.00075776,96070.0,96069.0,0.39131756]
[1740382532732,0.00075776,96070.0,96069.0,0.39431756]
[1740382533163,0.00075776,96070.0,96069.0,0.39131756]
[1740382533579,0.00075776,96070.0,96069.0,0.39731756]
[1740382533835,0.00075776,96070.0,96069.0,0.40231756]
[1740382534439,0.00075776,96070.0,96069.0,0.40987756]
[1740382536006,0.00075776,96070.0,96069.0,0.43088316]
[1740382538462,0.00075776,96070.0,96069.0,0.43258276]
[1740382548552,0.00075776,96070.0,96069.0,0.41157716]
[1740382556005,0.00025344,96070.0,96069.0,0.41157716]
[1740382561164,0.00025344,96070.0,96069.0,0.40401716]
[1740382561389,0.00025344,96070.0,96069.0,0.41157716]
[1740382562632,0.00025344,96070.0,96069.0,0.24788016]
[1740382562823,0.15638944,96070.0,96069.0,0.12118016]
[1740382563171,0.15638944,96070.0,96069.0,0.01853447]
[1740382563762,0.15638944,96070.0,96069.0,0.01253447]
[1740382564538,0.15638944,96070.0,96069.0,0.01553447]
[1740382564932,0.15638944,96070.0,96069.0,0.01253447]
[1740382565158,0.15638944,96070.0,96069.0,0.0066996]
[1740382565359,0.15738944,96070.0,96069.0,0.0066996]
[1740382574861,0.18965527,96072.0,96069.0,0.0066996]
[1740382575039,0.156136,96070.0,96069.0,0.0066996]
[1740382577024,0.157136,96070.0,96069.0,0.0066996]
[1740382577211,0.157136,96070.0,96069.0,0.0016996]
[1740382577411,0.306136,96070.0,96069.0,6e-07]
[1740382577616,0.41648702,96070.0,96069.0,6e-07]
[1740382577847,0.41748702,96070.0,96069.0,6e-07]
[1740382578049,0.348336,96070.0,96069.0,6e-07]
[1740382578671,0.45098169,96070.0,96069.0,6e-07]
[1740382579001,0.48118169,96070.0,96069.0,6e-07]
[1740382579208,0.48018169,96070.0,96069.0,6e-07]
[1740382580864,0.50735897,96070.0,96069.0,6e-07]
[1740382581065,0.61543706,96070.0,96069.0,6e-07]
[1740382581268,0.61943706,96070.0,96069.0,6e-07]
[1740382581496,0.347345,96064.0,96063.0,2e-07]
[1740382581693,0.44999069,96064.0,96063.0,2e-07]
[1740382582558,0.45199069,96064.0,96063.0,2e-07]
[1740382582763,0.45699069,96064.0,96063.0,2e-07]
[1740382584407,0.52485765,96064.0,96063.0,2e-07]
[1740382586605,0.15,96055.0,96051.0,1e-06]
[1740382586803,0.306165,96052.0,96051.0,1e-06]
[1740382588414,0.308165,96052.0,96051.0,1e-06]
[1740382588576,0.36493365,96052.0,96025.0,0.0807]
[1740382588779,0.156202,96029.0,96025.0,0.0807]
[1740382588976,0.208264,96032.0,96025.0,0.0807]
[1740382589246,0.156202,96029.0,96025.0,0.0807]
[1740382590661,0.156202,96029.0,96028.0,0.0066988]
[1740382591154,0.17949565,96029.0,96028.0,0.0066988]
[1740382591391,0.156202,96029.0,96028.0,0.0066988]
[1740382592415,0.156202,96029.0,96028.0,0.0096988]
[1740382611714,0.156202,96029.0,96028.0,0.0046988]
[1740382611953,0.156202,96029.0,96028.0,0.0076988]
[1740382612160,0.156202,96029.0,96028.0,0.0046988]
[1740382612372,0.156202,96029.0,96028.0,0.0076988]
[1740382613360,0.156202,96029.0,96028.0,0.0046988]
[1740382613598,0.156202,96029.0,96028.0,0.0076988]
[1740382615416,0.156202,96029.0,96028.0,0.1349988]
[1740382615743,0.146202,96029.0,96028.0,0.1349988]
[1740382621046,0.2091181,96031.0,96028.0,0.13985477]
[1740382621274,0.156202,96029.0,96028.0,0.13985477]
[1740382621451,0.0008501,96031.0,96028.0,0.13985477]
[1740382622090,0.0008501,96031.0,96028.0,0.06005477]
[1740382622292,0.0008501,96031.0,96029.0,0.0806]
[1740382622541,0.0008501,96031.0,96030.0,0.1075]
[1740382622678,0.0008501,96031.0,96030.0,0.1878]
[1740382624202,0.0008501,96031.0,96030.0,0.1898]
[1740382624836,0.0008501,96031.0,96030.0,0.346001]
[1740382625060,0.0008501,96031.0,96030.0,0.395401]
[1740382625625,0.0008501,96031.0,96030.0,0.397401]
[1740382630102,0.0008501,96031.0,96030.0,0.718801]
[1740382632796,0.0008501,96031.0,96030.0,0.714801]
[1740382633204,0.0018501,96031.0,96030.0,0.726801]
[1740382644102,0.0018501,96031.0,96030.0,0.74134185]
[1740382644900,0.0018501,96031.0,96030.0,0.73534185]
[1740382645143,0.0008501,96031.0,96030.0,0.72934185]
[1740382645338,0.0008501,96031.0,96030.0,0.73534185]
[1740382645566,0.0018501,96031.0,96030.0,0.74034185]
[1740382645915,0.0008501,96031.0,96030.0,0.72934185]
[1740382646326,0.0008501,96031.0,96030.0,0.87934185]
[1740382646532,0.0008501,96031.0,96030.0,0.88634185]
[1740382646714,0.0018501,96031.0,96030.0,0.89134185]
[1740382648545,0.0018501,96031.0,96030.0,0.89890185]
[1740382649154,0.0018501,96031.0,96030.0,0.884361]
[1740382649281,0.0018501,96031.0,96030.0,0.72816]
[1740382650709,0.0018501,96031.0,96030.0,0.57816]
[1740382650918,0.0018501,96031.0,96030.0,0.5706]
[1740382650919,0.1580491,96031.0,96030.0,0.5706]
[1740382651876,0.1570491,96031.0,96030.0,0.5586]
[1740382652255,0.1570491,96031.0,96030.0,0.5696]
[1740382652418,0.17826049,96031.0,96030.0,0.5696]
[1740382652645,0.17826049,96031.0,96030.0,0.1185]
[1740382660915,0.17826049,96031.0,96030.0,0.11364569]
[1740382666410,0.156199,96031.0,96030.0,0.11364569]
[1740382668201,0.17770349,96031.0,96030.0,0.11364569]
[1740382668613,0.17770349,96031.0,96030.0,0.011]
[1740382668811,0.24910349,96031.0,96030.0,0.011]
[1740382668975,0.17770349,96031.0,96030.0,0.011]
[1740382669417,0.17770349,96031.0,96030.0,0.006]
[1740382669819,0.02150449,96031.0,96029.0,0.0017002]
[1740382669998,0.19950442,96033.0,96029.0,0.0017002]
[1740382669999,0.156201,96030.0,96029.0,0.0017002]
[1740382671729,0.156201,96030.0,96029.0,0.0027002]
[1740382671966,0.01862681,96031.0,96029.0,0.0037002]
[1740382672170,0.156201,96030.0,96029.0,0.0037002]
[1740382672787,0.20826,96034.0,96029.0,0.0037002]
[1740382672939,0.1562,96031.0,96029.0,0.0037002]
[1740382673133,0.156201,96030.0,96029.0,0.0027002]
[1740382673361,0.01875197,96034.0,96029.0,0.0027002]
[1740382673562,0.01875197,96034.0,96030.0,0.10264569]
[1740382673904,0.01875197,96034.0,96030.0,0.14814569]
[1740382675044,0.01975197,96034.0,96030.0,0.14814569]
[1740382675474,0.01975197,96034.0,96031.0,0.00468443]
[1740382675727,0.17594797,96034.0,96032.0,0.10264569]
[1740382676058,0.17594797,96034.0,96033.0,0.00468277]
[1740382676243,0.17594797,96034.0,96033.0,0.10732846]
[1740382676244,0.17494797,96034.0,96033.0,0.10732846]
[1740382676652,0.17594797,96034.0,96033.0,0.10732846]
[1740382677125,0.01875197,96034.0,96033.0,0.26352446]
[1740382677414,0.01975197,96034.0,96033.0,0.26352446]
[1740382677636,0.001,96034.0,96033.0,0.34052446]
[1740382677972,0.01893214,96035.0,96033.0,0.18432846]
[1740382678182,0.00789946,96054.0,96043.0,0.156178]
[1740382678432,0.156168,96051.0,96043.0,0.156178]
[1740382678599,0.3259,96075.0,96044.0,0.00467364]
[1740382678810,0.156166,96052.0,96044.0,0.16085164]
[1740382678986,0.156167,96051.0,96044.0,0.00467364]
[1740382679392,0.15,96059.0,96044.0,0.00467364]
[1740382679592,0.156172,96048.0,96040.0,0.156184]
[1740382679796,0.156172,96048.0,96041.0,0.25882869]
[1740382679993,0.208219,96053.0,96041.0,0.1072411]
[1740382680223,0.156169,96050.0,96042.0,0.15618]
[1740382680539,0.003,96051.0,96042.0,0.15618]
[1740382680540,0.003,96051.0,96043.0,0.10723941]
[1740382680680,0.156161,96055.0,96047.0,0.156173]
[1740382680886,0.003,96048.0,96047.0,0.25881869]
[1740382681314,0.003,96048.0,96047.0,0.34111869]
[1740382682122,0.003,96048.0,96047.0,0.34411869]
[1740382682322,0.003,96048.0,96047.0,0.34111869]
[1740382682586,0.11066527,96070.0,96047.0,0.18494569]
[1740382682865,0.003,96055.0,96048.0,0.10264569]
[1740382683272,0.12890079,96060.0,96048.0,0.10264569]
[1740382683500,0.156163,96053.0,96048.0,0.25881669]
[1740382683917,0.156163,96053.0,96048.0,0.10264569]
[1740382684124,0.208213,96056.0,96048.0,0.10264569]
[1740382684125,0.156162,96054.0,96048.0,0.25881669]
[1740382684333,0.15616,96055.0,96049.0,0.156169]
[1740382684542,0.208207,96058.0,96050.0,0.10264569]
[1740382685148,0.156165,96053.0,96050.0,0.10264569]
[1740382685765,0.156162,96054.0,96050.0,0.10264569]
[1740382686503,0.208213,96056.0,96050.0,0.10264569]
[1740382686705,0.156164,96053.0,96050.0,0.10264569]
[1740382686946,0.156166,96052.0,96050.0,0.10264569]
[1740382687319,0.12890079,96060.0,96050.0,0.10264569]
[1740382687517,0.156166,96052.0,96050.0,0.10364569]
[1740382687733,0.156166,96052.0,96050.0,0.10564569]
[1740382688079,0.156164,96053.0,96050.0,0.10264569]
[1740382688424,0.156164,96053.0,96050.0,0.10664569]
[1740382688645,0.12890079,96060.0,96050.0,0.10664569]
[1740382688863,0.156167,96051.0,96050.0,0.10664569]
[1740382689260,0.156165,96052.0,96050.0,0.10464569]
[1740382689797,0.156165,96052.0,96050.0,0.10264569]
[1740382690092,0.156165,96052.0,96050.0,0.10464569]
[1740382690345,0.208217,96054.0,96050.0,0.10264569]
[1740382690558,0.156166,96052.0,96051.0,0.00458702]
[1740382690700,0.156166,96052.0,96051.0,0.10723271]
[1740382691729,0.156166,96052.0,96051.0,0.10923271]
[1740382693586,0.156166,96052.0,96051.0,0.11123271]
[1740382694393,0.156166,96052.0,96051.0,0.00858702]
[1740382694824,0.156166,96052.0,96051.0,0.004]
[1740382702470,0.249417,96054.0,96032.0,0.0832]
[1740382702599,0.156194,96034.0,96032.0,0.0832]
[1740382704317,0.156194,96034.0,96033.0,0.0046998]
[1740382704932,0.156194,96034.0,96033.0,0.0076998]
[1740382706287,0.156194,96034.0,96033.0,0.0046998]
[1740382706478,0.156194,96034.0,96033.0,0.0076998]
[1740382706990,0.156194,96034.0,96033.0,0.0046998]
[1740382707340,0.156194,96034.0,96033.0,0.0066998]
[1740382707743,0.156194,96034.0,96033.0,0.0036998]
[1740382708665,0.156194,96034.0,96033.0,0.0056998]
[1740382708824,0.156194,96034.0,96033.0,0.0036998]
[1740382709244,0.156194,96034.0,96033.0,0.0056998]
[1740382709435,0.2134644,96034.0,96033.0,0.0056998]
[1740382709652,0.3634644,96034.0,96033.0,0.0056998]
[1740382709971,0.306194,96034.0,96033.0,0.0056998]
[1740382710167,0.306194,96034.0,96033.0,0.0036998]
[1740382710390,0.306194,96034.0,96033.0,0.0016998]
[1740382710637,0.314194,96034.0,96033.0,0.0016998]
[1740382711045,0.311194,96034.0,96033.0,0.0016998]
[1740382711257,0.316194,96034.0,96033.0,0.0016998]
[1740382712533,0.319194,96034.0,96033.0,0.0016998]
[1740382713197,0.32696245,96034.0,96033.0,0.0016998]
[1740382725194,0.32781235,96034.0,96033.0,0.0016998]
[1740382732557,0.32481235,96034.0,96033.0,0.0016998]
[1740382732739,0.32781235,96034.0,96033.0,0.0016998]
[1740382733776,0.31781235,96034.0,96033.0,0.0016998]
[1740382733951,0.32081235,96034.0,96033.0,0.0016998]
[1740382742726,0.0068499,96034.0,96033.0,0.0825998]
[1740382742889,0.0068499,96034.0,96033.0,0.1293998]
[1740382743091,0.1630439,96034.0,96033.0,0.23588963]
[1740382765449,0.208254,96037.0,96033.0,0.23588963]
[1740382765651,0.156194,96034.0,96033.0,0.23588963]
[1740382767422,0.159194,96034.0,96033.0,0.23588963]
[1740382767795,0.162194,96034.0,96033.0,0.23588963]
[1740382771714,0.1630439,96034.0,96033.0,0.23588963]
[1740382800866,0.15200589,96034.0,96033.0,0.23588963]
[1740382809734,0.0008499,96036.0,96033.0,0.23588963]
[1740382809935,0.156194,96034.0,96033.0,0.23588963]
[1740382811546,0.159194,96034.0,96033.0,0.23588963]
[1740382813319,0.003,96034.0,96033.0,0.23588963]
[1740382813729,0.159194,96034.0,96033.0,0.23588963]
[1740382817293,0.1600439,96034.0,96033.0,0.23588963]
[1740382822362,0.1600439,96034.0,96033.0,0.00554394]
[1740382822584,0.18893785,96034.0,96033.0,0.0016998]
[1740382823331,0.18893785,96034.0,96033.0,8e-07]
[1740382823332,0.80087285,96034.0,96033.0,8e-07]
[1740382823530,0.38013785,96034.0,96033.0,8e-07]
[1740382823737,0.4430378,96034.0,96033.0,8e-07]
[1740382823956,0.40733785,96034.0,96033.0,8e-07]
[1740382824160,0.40833785,96034.0,96033.0,8e-07]
[1740382824382,0.3794439,96034.0,96033.0,8e-07]
[1740382824815,0.3804439,96034.0,96033.0,0.0010008]
[1740382825023,0.6926649,96034.0,96033.0,0.0010008]
[1740382825219,0.5883279,96034.0,96033.0,0.0020008]
[1740382826445,0.3090439,96034.0,96033.0,0.0020008]
[1740382827235,0.3090439,96034.0,96033.0,0.0010008]
[1740382827768,0.3120439,96034.0,96033.0,0.0010008]
[1740382827934,0.3170439,96034.0,96033.0,0.0010008]
[1740382828150,0.3120439,96034.0,96033.0,8e-07]
[1740382828561,0.3170439,96034.0,96033.0,8e-07]
[1740382863751,0.0108499,96034.0,96033.0,0.23394649]
[1740382863949,0.1670439,96034.0,96033.0,0.23394649]
[1740382864182,0.1670439,96034.0,96033.0,0.23868416]
[1740382865199,0.0108499,96034.0,96033.0,0.23868416]
[1740382866022,0.0058499,96034.0,96033.0,0.23868416]
[1740382866709,0.0108499,96034.0,96033.0,0.23868416]
[1740382866830,0.0118499,96034.0,96033.0,0.23868416]
[1740382867045,0.0068499,96034.0,96033.0,0.23868416]
[1740382867456,0.0078499,96034.0,96033.0,0.23868416]
[1740382875194,0.0078499,96034.0,96033.0,0.39488016]
[1740382875394,0.0078499,96034.0,96033.0,0.23868416]
[1740382878894,0.0078499,96034.0,96033.0,0.39488016]
[1740382882894,0.0068499,96034.0,96033.0,0.39488016]
[1740382883209,0.0018499,96034.0,96033.0,0.39488016]
[1740382883408,0.0018499,96034.0,96033.0,0.39888016]
[1740382883958,0.0018499,96034.0,96033.0,0.40213902]
[1740382884747,0.0008499,96034.0,96033.0,0.40213902]
[1740382885283,0.0008499,96034.0,96033.0,0.40713902]
[1740382892058,0.0008499,96034.0,96033.0,0.4382761]
[1740382910378,0.0008499,96034.0,96033.0,0.43501724]
[1740382911596,0.0008499,96034.0,96033.0,0.40388016]
[1740382913435,0.1570439,96034.0,96033.0,0.24768416]
[1740382913845,0.1570439,96034.0,96033.0,0.11638416]
[1740382914110,0.1570439,96034.0,96033.0,0.11164649]
[1740382914665,0.1570439,96034.0,96033.0,0.10664649]
[1740382915066,0.1570439,96034.0,96033.0,0.11064649]
[1740382916378,0.1570439,96034.0,96033.0,0.10664649]
[1740382916579,0.1570439,96034.0,96033.0,0.11064649]
[1740382916787,0.17862708,96036.0,96033.0,0.11064649]
[1740382917095,0.17862708,96036.0,96034.0,0.10264569]
[1740382917269,0.156193,96035.0,96034.0,0.10736454]
[1740382917466,0.156193,96035.0,96034.0,0.10264569]
[1740382918088,0.156194,96034.0,96033.0,0.0070008]
[1740382918891,0.156194,96034.0,96033.0,0.0030008]
[1740382919303,0.197394,96034.0,96033.0,8e-07]
[1740382919520,0.347394,96034.0,96033.0,8e-07]
[1740382920037,0.348394,96034.0,96033.0,8e-07]
[1740382920394,0.350394,96034.0,96033.0,8e-07]
[1740382922947,0.35839796,96034.0,96033.0,8e-07]
[1740382924342,0.31719796,96034.0,96033.0,8e-07]
[1740382925581,0.309194,96034.0,96033.0,8e-07]
[1740382925983,0.307194,96034.0,96033.0,8e-07]
[1740382926188,0.306194,96034.0,96033.0,8e-07]
[1740382926385,0.306194,96034.0,96033.0,0.0010008]
[1740382926766,0.306194,96034.0,96033.0,8e-07]
[1740382926970,0.308194,96034.0,96033.0,0.0010008]
[1740382927356,0.306194,96034.0,96033.0,0.0010008]
[1740382927840,0.306194,96034.0,96033.0,0.0030008]
[1740382932540,0.17947698,96036.0,96033.0,0.0030008]
[1740382932767,0.156194,96034.0,96033.0,0.0030008]
[1740382933171,0.0008499,96036.0,96033.0,0.0030008]
[1740382933527,0.1570409,96036.0,96035.0,0.0498]
[1740382933851,0.0008499,96036.0,96035.0,0.21071106]
[1740382934094,0.0008499,96036.0,96035.0,0.05451806]
[1740382934313,0.1570409,96036.0,96035.0,0.05451806]
[1740382934811,0.0008499,96036.0,96035.0,0.05451806]
[1740382935254,0.1570409,96036.0,96035.0,0.05451806]
[1740382935955,0.1570409,96036.0,96035.0,0.05551806]
[1740382936495,0.0008499,96036.0,96035.0,0.05651806]
[1740382936671,0.0008499,96036.0,96035.0,0.21271106]
[1740382937881,0.1570409,96036.0,96035.0,0.05651806]
[1740382939094,0.1570409,96036.0,96035.0,0.0518]
[1740382944042,0.1570409,96036.0,96035.0,0.0534998]
[1740382946120,0.1570409,96036.0,96035.0,0.0036998]
[1740382947780,0.1570409,96036.0,96035.0,0.0026998]
[1740382948396,0.1570409,96036.0,96035.0,0.0016998]
[1740382949875,0.1570409,96036.0,96035.0,0.0777998]
[1740382952521,0.1570409,96036.0,96035.0,0.0797998]
[1740382953018,0.1570409,96036.0,96035.0,0.0817998]
[1740382982639,0.1570409,96036.0,96035.0,0.08634923]
[1740382982911,0.1570409,96036.0,96035.0,0.0817998]
[1740382985007,0.1570409,96036.0,96035.0,0.0520998]
[1740382992849,0.1570409,96036.0,96035.0,0.0537996]
[1740382996464,0.1570409,96036.0,96035.0,0.0056998]
[1740382996835,0.2262409,96036.0,96035.0,0.0056998]
[1740382997245,0.2262409,96036.0,96035.0,0.0036998]
[1740382997501,0.2319409,96036.0,96035.0,0.0046998]
[1740382997845,0.2319409,96036.0,96035.0,0.0026998]
[1740382998045,0.45882538,96036.0,96035.0,0.0026998]
[1740382998235,0.46382538,96036.0,96035.0,0.0026998]
[1740382998433,0.46382538,96036.0,96035.0,0.0016998]
[1740382999857,0.46782538,96036.0,96035.0,0.0016998]
[1740383000960,0.62253707,96036.0,96029.0,0.001661]
[1740383001158,0.306201,96030.0,96029.0,1e-06]
[1740383003342,0.310201,96030.0,96029.0,1e-06]
[1740383003627,0.306201,96030.0,96029.0,1e-06]
[1740383003828,0.310201,96030.0,96029.0,1e-06]
[1740383004763,0.314201,96030.0,96029.0,1e-06]
[1740383005368,0.310201,96030.0,96029.0,1e-06]
[1740383005569,0.312201,96030.0,96029.0,1e-06]
[1740383005912,0.308201,96030.0,96029.0,1e-06]
[1740383006335,0.310201,96030.0,96029.0,1e-06]
[1740383006850,0.311201,96030.0,96029.0,1e-06]
[1740383007196,0.309201,96030.0,96029.0,1e-06]
[1740383007416,0.311201,96030.0,96029.0,1e-06]
[1740383008090,0.380401,96030.0,96029.0,1e-06]
[1740383008706,0.311201,96030.0,96029.0,1e-06]
[1740383011194,0.31124401,96030.0,96029.0,1e-06]
[1740383013655,0.4138897,96030.0,96029.0,1e-06]
[1740383015496,0.31124401,96030.0,96029.0,1e-06]
[1740383016999,0.31209391,96030.0,96029.0,1e-06]
[1740383022955,0.00589291,96030.0,96029.0,1e-06]
[1740383023643,0.16209391,96030.0,96029.0,1e-06]
[1740383037174,0.16711319,96032.0,96029.0,1e-06]
[1740383037436,1.426596,96031.0,96029.0,1e-06]
[1740383037757,0.156201,96030.0,96029.0,1e-06]
[1740383038643,0.40884669,96030.0,96029.0,1e-06]
[1740383038793,0.55881499,96030.0,96029.0,1e-06]
[1740383038992,2.71031599,96030.0,96029.0,1e-06]
[1740383040360,2.71531599,96030.0,96029.0,1e-06]
[1740383040569,2.37537154,96030.0,96029.0,1e-06]
[1740383040948,2.37437154,96030.0,96029.0,1e-06]
[1740383041123,2.31808144,96030.0,96029.0,1e-06]
[1740383041330,2.32208144,96030.0,96029.0,1e-06]
[1740383041555,2.30684744,96030.0,96029.0,1e-06]
[1740383041769,2.18984744,96030.0,96029.0,1e-06]
[1740383042138,0.43323744,96030.0,96029.0,1e-06]
[1740383042703,1.85956144,96030.0,96029.0,1e-06]
[1740383043027,2.18546144,96030.0,96029.0,1e-06]
[1740383043253,2.14388444,96030.0,96029.0,1e-06]
[1740383045901,2.12490144,96030.0,96029.0,1e-06]
[1740383046730,1.47245544,96030.0,96029.0,1e-06]
[1740383046895,1.40816544,96030.0,96029.0,1e-06]
[1740383047096,1.20093744,96030.0,96029.0,1e-06]
[1740383047686,1.17905144,96030.0,96029.0,1e-06]
[1740383054559,1.28169713,96030.0,96029.0,1e-06]
[1740383054792,0.86178313,96030.0,96029.0,1e-06]
[1740383054990,0.15,96018.0,96013.0,0.0484]
[1740383055141,0.156227,96014.0,96013.0,0.0484]
[1740383057041,0.157227,96014.0,96013.0,0.0484]
[1740383057242,0.15,96009.0,95982.0,0.09370241]
[1740383057506,0.208307,96012.0,95982.0,0.09370241]
[1740383057507,0.156277,95983.0,95982.0,0.09370241]
[1740383057674,0.156277,95983.0,95982.0,0.1963481]
[1740383057886,0.156277,95983.0,95982.0,0.2737481]
[1740383058467,0.156277,95983.0,95982.0,0.18004569]
[1740383059180,0.157277,95983.0,95982.0,0.18004569]
[1740383059353,0.17086978,95983.0,95982.0,0.18004569]
[1740383060402,0.17086978,95983.0,95982.0,0.22924569]
[1740383061010,0.17086978,95983.0,95982.0,0.1266]
[1740383061843,0.16886978,95983.0,95982.0,0.1266]
[1740383062239,0.16886978,95983.0,95982.0,0.1306]
[1740383062439,0.16886978,95983.0,95982.0,0.1286]
[1740383063694,0.16886978,95983.0,95982.0,0.1306]
[1740383063916,0.16886978,95983.0,95982.0,0.004]
[1740383065091,0.16886978,95983.0,95982.0,0.002]
[1740383065560,0.16886978,95983.0,95982.0,0.003]
[1740383065774,0.16886978,95983.0,95982.0,0.001]
[1740383065986,0.15629,95975.0,95974.0,0.0812]
[1740383068070,0.15629,95975.0,95974.0,0.0842]
[1740383068947,0.15629,95975.0,95974.0,0.0872]
[1740383073814,0.15629,95975.0,95974.0,0.006]
[1740383074339,0.30629,95975.0,95974.0,0.006]
[1740383075184,0.30629,95975.0,95974.0,0.003]
[1740383075393,0.156293,95973.0,95972.0,0.0016996]
[1740383075609,0.306293,95973.0,95972.0,0.0016996]
[1740383076961,0.312293,95973.0,95972.0,0.0016996]
[1740383077701,0.317293,95973.0,95972.0,0.0016996]
[1740383081018,0.43447954,95973.0,95972.0,0.0016996]
[1740383081417,0.43865754,95973.0,95972.0,0.0016996]
[1740383084632,0.76455754,95973.0,95972.0,0.0016996]
[1740383085370,0.79345211,95973.0,95972.0,0.0016996]
[1740383091659,0.75001669,95973.0,95972.0,0.0016996]
[1740383091898,0.74583869,95973.0,95972.0,0.0016996]
[1740383096968,0.74583869,95973.0,95967.0,0.0016996]
[1740383096969,0.306302,95968.0,95967.0,0.0016996]
[1740383097143,0.15,95967.0,95962.0,0.00121133]
[1740383097354,0.30631,95963.0,95962.0,0.00121133]
[1740383098882,0.30931,95963.0,95962.0,0.00121133]
[1740383099090,0.30631,95963.0,95962.0,0.00121133]
[1740383099515,0.15,95962.0,95954.0,0.0016996]
[1740383099712,0.306323,95955.0,95954.0,1.6e-06]
[1740383100802,0.306323,95955.0,95954.0,0.0769016]
[1740383102602,0.307323,95955.0,95954.0,0.0769016]
[1740383102997,0.306323,95955.0,95954.0,0.0769016]
[1740383103362,0.307323,95955.0,95954.0,0.0769016]
[1740383104697,0.306323,95955.0,95954.0,0.0769016]
[1740383105132,0.310323,95955.0,95954.0,1.6e-06]
[1740383105347,0.312323,95955.0,95954.0,1.6e-06]
[1740383106182,0.306323,95955.0,95954.0,1.6e-06]
[1740383106639,0.311323,95955.0,95954.0,1.6e-06]
[1740383108014,0.314323,95955.0,95954.0,1.6e-06]
[1740383108420,0.40907219,95955.0,95954.0,1.6e-06]
[1740383109078,0.40407219,95955.0,95954.0,1.6e-06]
[1740383109296,0.156349,95939.0,95938.0,0.0016998]
[1740383109497,0.306349,95939.0,95938.0,0.00559768]
[1740383109694,0.306349,95939.0,95938.0,0.0016998]
[1740383112004,0.311349,95939.0,95938.0,0.0016998]
[1740383112620,0.314349,95939.0,95938.0,0.0016998]
[1740383113403,0.4083214,95939.0,95938.0,0.0016998]
[1740383114358,0.4043214,95939.0,95938.0,0.0016998]
[1740383114581,0.314421,95939.0,95938.0,0.0016998]
[1740383115163,0.305421,95939.0,95938.0,0.0016998]
[1740383115358,0.313421,95939.0,95938.0,0.0016998]
[1740383115766,0.310421,95939.0,95938.0,0.0016998]
[1740383115998,0.314421,95939.0,95938.0,0.0016998]
[1740383116986,0.309421,95939.0,95938.0,0.0016998]
[1740383117384,0.314421,95939.0,95938.0,8e-07]
[1740383117773,0.41206669,95939.0,95938.0,8e-07]
[1740383118386,0.41306669,95939.0,95938.0,8e-07]
[1740383118586,0.41706669,95939.0,95938.0,8e-07]
[1740383118808,0.41206669,95939.0,95938.0,8e-07]
[1740383119238,0.51971238,95939.0,95938.0,8e-07]
[1740383119477,0.51571238,95939.0,95938.0,8e-07]
[1740383119814,0.52071238,95939.0,95938.0,8e-07]
[1740383120014,0.41806669,95939.0,95938.0,8e-07]
[1740383120394,0.41306669,95939.0,95938.0,8e-07]
[1740383120710,0.41906669,95939.0,95938.0,8e-07]